fUST/lending_fUST_20250623
["ID","MTS","AMOUNT","RATE_DAILY","PERIOD"]
[366994331,1750608648284,-460.0,0.00022191,3]
[366994332,1750608648294,-460.0,0.00022191,3]
[366994333,1750608648304,-460.0,0.00022191,3]
[366994334,1750608648315,-460.0,0.00022191,3]
[366994335,1750608648325,-460.0,0.00022191,3]
[366994336,1750608648336,-460.0,0.00022191,3]
[366994337,1750608648346,-460.0,0.00022191,3]
[366994338,1750608648357,-570.53286838,0.00022191,3]
[366994339,1750608648367,-460.0,0.00022191,3]
[366994340,1750608648377,-460.0,0.00022191,3]
[366994341,1750608648387,-460.0,0.00022191,3]
[366994342,1750608648397,-460.0,0.00022191,3]
[366994343,1750608648407,-460.0,0.00022191,3]
[366994344,1750608648418,-159.61121548,0.00022191,3]
[366994345,1750608648428,-460.0,0.00022191,3]
[366994346,1750608648439,-460.0,0.00022191,3]
[366994347,1750608648450,-460.0,0.00022191,3]
[366994348,1750608648462,-460.0,0.00022191,3]
[366994349,1750608648472,-658.49,0.00022191,3]
[366994350,1750608648483,-460.0,0.00022191,3]
[366994351,1750608648494,-460.0,0.00022191,3]
[366994352,1750608648505,-460.0,0.00022191,3]
[366994353,1750608648516,-460.0,0.00022191,3]
[366994354,1750608648527,-460.0,0.00022191,3]
[366994355,1750608648538,-460.0,0.00022191,3]
[366994356,1750608648548,-460.0,0.00022191,3]
[366994357,1750608648558,-460.0,0.00022191,3]
[366994358,1750608648569,-460.0,0.00022191,3]
[366994359,1750608648579,-460.0,0.00022191,3]
[366994360,1750608648589,-460.0,0.00022191,3]
[366994361,1750608648600,-460.0,0.00022191,3]
[366994362,1750608648611,-850.87,0.00022191,3]
[366994363,1750608648622,-272.08080864,0.00022191,3]
[366994364,1750608648632,-460.0,0.00022191,3]
[366994365,1750608648643,-460.0,0.00022191,3]
[366994366,1750608648654,-460.0,0.00022191,3]
[366994367,1750608648664,-460.0,0.00022191,3]
[366994368,1750608648675,-460.0,0.00022191,3]
[366994369,1750608648686,-460.0,0.00022191,3]
[366994370,1750608648696,-460.0,0.00022191,3]
[366994371,1750608648707,-460.0,0.00022191,3]
[366994372,1750608648721,-460.0,0.00022191,3]
[366994373,1750608648731,-7736.37,0.00022191,3]
[366994374,1750608648742,-3449.23,0.00022191,3]
[366994375,1750608648753,-460.0,0.00022191,3]
[366994376,1750608648764,-460.0,0.00022191,3]
[366994377,1750608648775,-460.0,0.00022191,3]
[366994378,1750608648785,-460.0,0.00022191,3]
[366994379,1750608648796,-460.0,0.00022191,3]
[366994380,1750608648807,-460.0,0.00022191,3]
[366994381,1750608648817,-157.70803184,0.00022191,3]
[366994382,1750608648828,-460.0,0.00022191,3]
[366994383,1750608648838,-460.0,0.00022191,3]
[366994384,1750608648848,-460.0,0.00022191,3]
[366994385,1750608648858,-500.0,0.00022191,3]
[366994386,1750608648869,-460.0,0.00022191,3]
[366994387,1750608648879,-154.96573657,0.00022191,3]
[366994388,1750608648889,-746.41,0.00022191,3]
[366994389,1750608648899,-460.0,0.00022191,3]
[366994390,1750608648909,-460.0,0.00022191,3]
[366994391,1750608648919,-460.0,0.00022191,3]
[366994392,1750608648929,-460.0,0.00022191,3]
[366994393,1750608648940,-473.71082291,0.00022191,3]
[366994394,1750608648950,-898.76,0.00022191,3]
[366994395,1750608648963,-3782.55,0.00022191,3]
[366994396,1750608648973,-626.49,0.00022191,3]
[366994397,1750608648983,-460.0,0.00022191,3]
[366994398,1750608648993,-460.0,0.00022191,3]
[366994399,1750608649004,-3068.46,0.00022191,3]
[366994400,1750608649014,-460.0,0.00022191,3]
[366994401,1750608649024,-460.0,0.00022191,3]
[366994402,1750608649034,-1088.41,0.00022191,3]
[366994403,1750608649045,-460.0,0.00022191,3]
[366994404,1750608649055,-9889.59,0.00022191,3]
[366994405,1750608649066,-541.97,0.00022191,3]
[366994406,1750608649076,-460.0,0.00022191,3]
[366994407,1750608649086,-460.0,0.00022191,3]
[366994408,1750608649096,-460.0,0.00022191,3]
[366994409,1750608649107,-460.0,0.00022191,3]
[366994410,1750608649117,-1858.32,0.00022191,3]
[366994411,1750608649127,-3451.07,0.00022191,3]
[366994412,1750608649137,-460.0,0.00022191,3]
[366994413,1750608649147,-460.0,0.00022191,3]
[366994414,1750608649158,-1040.55,0.00022191,3]
[366994415,1750608649168,-460.0,0.00022191,3]
[366994416,1750608649178,-460.0,0.00022191,3]
[366994417,1750608649189,-4034.38,0.00022191,3]
[366994418,1750608649200,-2973.21,0.00022191,3]
[366994419,1750608649213,-4594.28,0.00022191,3]
[366994420,1750608649224,-460.0,0.00022191,3]
[366994421,1750608649234,-12312.43,0.00022191,3]
[366994422,1750608649244,-460.0,0.00022191,3]
[366994423,1750608649255,-410.75366526,0.00022191,3]
[366994424,1750608649266,-460.0,0.00022191,3]
[366994425,1750608649276,-351.24236937,0.00022191,3]
[366994426,1750608649286,-460.0,0.00022191,3]
[366994427,1750608649297,-1386.56,0.00022191,3]
[366994428,1750608649307,-460.0,0.00022191,3]
[366994429,1750608649318,-460.0,0.00022191,3]
[366994430,1750608649328,-460.0,0.00022191,3]
[366994431,1750608649338,-460.0,0.00022191,3]
[366994432,1750608649348,-460.0,0.00022191,3]
[366994433,1750608649358,-874.5,0.00022191,3]
[366994434,1750608649368,-460.0,0.00022191,3]
[366994435,1750608649378,-460.0,0.00022191,3]
[366994436,1750608649388,-432.03034759,0.00022191,3]
[366994437,1750608649398,-503.11,0.00022191,3]
[366994438,1750608649408,-460.0,0.00022191,3]
[366994439,1750608649418,-486.25,0.00022191,3]
[366994440,1750608649428,-460.0,0.00022191,3]
[366994441,1750608649438,-1127.01,0.00022191,3]
[366994442,1750608649449,-592.49043466,0.00022191,3]
[366994443,1750608649462,-550.22,0.00022191,3]
[366994444,1750608649474,-460.0,0.00022191,3]
[366994445,1750608649484,-1624.57,0.00022191,3]
[366994446,1750608649494,-460.0,0.00022191,3]
[366994447,1750608649504,-460.0,0.00022191,3]
[366994448,1750608649514,-460.0,0.00022191,3]
[366994449,1750608649524,-551.95,0.00022191,3]
[366994450,1750608649534,-460.0,0.00022191,3]
[366994451,1750608649544,-460.0,0.00022191,3]
[366994452,1750608649554,-431.09995627,0.00022191,3]
[366994453,1750608649564,-460.0,0.00022191,3]
[366994454,1750608649574,-5404.38,0.00022191,3]
[366994455,1750608649584,-1987.52,0.00022191,3]
[366994456,1750608649594,-510.34,0.00022191,3]
[366994457,1750608649605,-460.0,0.00022191,3]
[366994458,1750608649615,-460.0,0.00022191,3]
[366994459,1750608649831,-460.0,0.00022191,3]
[366994460,1750608649848,-672.14,0.00022191,3]
[366994461,1750608649859,-1620.57,0.00022191,3]
[366994462,1750608649869,-5904.96,0.00022191,3]
[366994463,1750608649879,-460.0,0.00022191,3]
[366994464,1750608649888,-460.0,0.00022191,3]
[366994465,1750608649898,-924.34,0.00022191,3]
[366994466,1750608649908,-1310.32,0.00022191,3]
[366994467,1750608649918,-10512.44,0.00022191,3]
[366994468,1750608649928,-460.0,0.00022191,3]
[366994469,1750608649939,-201.19503109,0.00022191,3]
[366994470,1750608649949,-460.0,0.00022191,3]
[366994471,1750608649961,-460.0,0.00022191,3]
[366994472,1750608649971,-460.0,0.00022191,3]
[366994473,1750608649981,-460.0,0.00022191,3]
[366994474,1750608649991,-460.0,0.00022191,3]
[366994475,1750608650001,-460.0,0.00022191,3]
[366994476,1750608650011,-460.0,0.00022191,3]
[366994477,1750608650021,-460.0,0.00022191,3]
[366994478,1750608650030,-5877.56,0.00022191,3]
[366994479,1750608650041,-460.0,0.00022191,3]
[366994480,1750608650050,-460.0,0.00022191,3]
[366994481,1750608650060,-460.0,0.00022191,3]
[366994482,1750608650070,-654.33,0.00022191,3]
[366994483,1750608650081,-1017.73,0.00022191,3]
[366994484,1750608650092,-1430.42,0.00022191,3]
[366994485,1750608650102,-460.0,0.00022191,3]
[366994486,1750608650112,-460.0,0.00022191,3]
[366994487,1750608650122,-8757.47,0.00022191,3]
[366994488,1750608650132,-460.0,0.00022191,3]
[366994489,1750608650144,-460.0,0.00022191,3]
[366994490,1750608650153,-460.0,0.00022191,3]
[366994491,1750608650163,-460.0,0.00022191,3]
[366994492,1750608650174,-224.34516668,0.00022191,3]
[366994493,1750608650184,-460.0,0.00022191,3]
[366994494,1750608650194,-460.0,0.00022191,3]
[366994495,1750608650204,-255.88236555,0.00022191,3]
[366994496,1750608650214,-482.53,0.00022191,3]
[366994497,1750608650224,-460.0,0.00022191,3]
[366994498,1750608650234,-460.0,0.00022191,3]
[366994499,1750608650244,-460.0,0.00022191,3]
[366994500,1750608650253,-460.0,0.00022191,3]
[366994501,1750608650263,-460.0,0.00022191,3]
[366994502,1750608650273,-607.68,0.00022191,3]
[366994503,1750608650282,-374.84445515,0.00022191,3]
[366994504,1750608650292,-1448.83,0.00022191,3]
[366994505,1750608650301,-460.0,0.00022191,3]
[366994506,1750608650311,-460.0,0.00022191,3]
[366994507,1750608650320,-432.55960243,0.00022191,3]
[366994508,1750608650330,-460.0,0.00022191,3]
[366994509,1750608650340,-8603.89,0.00022191,3]
[366994510,1750608650350,-460.0,0.00022191,3]
[366994511,1750608650360,-460.0,0.00022191,3]
[366994512,1750608650370,-471.11,0.00022191,3]
[366994513,1750608650379,-460.0,0.00022191,3]
[366994514,1750608650389,-460.0,0.00022191,3]
[366994515,1750608650399,-1313.53,0.00022191,3]
[366994516,1750608650409,-460.0,0.00022191,3]
[366994517,1750608650419,-2431.79,0.00022191,3]
[366994518,1750608650428,-1289.24,0.00022191,3]
[366994519,1750608650438,-517.92,0.00022191,3]
[366994520,1750608650448,-460.0,0.00022191,3]
[366994521,1750608650458,-537.79562488,0.00022191,3]
[366994522,1750608650467,-508.15135015,0.00022191,3]
[366994523,1750608650477,-476.07,0.00022191,3]
[366994524,1750608650487,-460.0,0.00022191,3]
[366994525,1750608650497,-460.0,0.00022191,3]
[366994526,1750608650507,-460.0,0.00022191,3]
[366994527,1750608650517,-460.0,0.00022191,3]
[366994528,1750608650527,-508.97,0.00022191,3]
[366994529,1750608650537,-712.15,0.00022191,3]
[366994530,1750608650547,-473.84,0.00022191,3]
[366994531,1750608650557,-540.7,0.00022191,3]
[366994532,1750608650567,-460.0,0.00022191,3]
[366994533,1750608650578,-460.0,0.00022191,3]
[366994534,1750608650588,-1828.5,0.00022191,3]
[366994535,1750608650598,-460.0,0.00022191,3]
[366994536,1750608650608,-460.0,0.00022191,3]
[366994537,1750608650618,-1134.34,0.00022191,3]
[366994538,1750608650627,-460.0,0.00022191,3]
[366994539,1750608650638,-460.0,0.00022191,3]
[366994540,1750608650648,-909.69,0.00022191,3]
[366994541,1750608650659,-833.39,0.00022191,3]
[366994542,1750608650670,-598.63,0.00022191,3]
[366994543,1750608650680,-841.82,0.00022191,3]
[366994544,1750608650691,-4415.03,0.00022191,3]
[366994545,1750608650701,-587.45,0.00022191,3]
[366994546,1750608650722,-4193.71,0.00022191,3]
[366994547,1750608650734,-575.5,0.00022191,3]
[366994548,1750608650747,-493.51,0.00022191,3]
[366994549,1750608650762,-1128.05,0.00022191,3]
[366994550,1750608650772,-1873.4,0.00022191,3]
[366994551,1750608650784,-3944.09,0.00022191,3]
[366994552,1750608650796,-460.0,0.00022191,3]
[366994553,1750608650806,-958.01,0.00022191,3]
[366994554,1750608650816,-460.0,0.00022191,3]
[366994555,1750608650827,-460.0,0.00022191,3]
[366994556,1750608650836,-889.94,0.00022191,3]
[366994557,1750608650846,-481.22,0.00022191,3]
[366994558,1750608650856,-1251.42,0.00022191,3]
[366994559,1750608650866,-460.0,0.00022191,3]
[366994560,1750608650876,-460.0,0.00022191,3]
[366994561,1750608650885,-2099.83,0.00022191,3]
[366994562,1750608650895,-460.0,0.00022191,3]
[366994563,1750608650906,-460.0,0.00022191,3]
[366994564,1750608650915,-460.0,0.00022191,3]
[366994565,1750608650924,-460.0,0.00022191,3]
[366994566,1750608650934,-622.74,0.00022191,3]
[366994567,1750608650943,-460.0,0.00022191,3]
[366994568,1750608650953,-487.77,0.00022191,3]
[366994569,1750608650964,-384.58060037,0.00022191,3]
[366994570,1750608650973,-460.0,0.00022191,3]
[366994571,1750608650983,-460.0,0.00022191,3]
[366994572,1750608650993,-587.42,0.00022191,3]
[366994573,1750608651002,-629.59,0.00022191,3]
[366994574,1750608651012,-460.0,0.00022191,3]
[366994575,1750608651022,-460.0,0.00022191,3]
[366994576,1750608651031,-460.0,0.00022191,3]
[366994577,1750608651041,-2798.38,0.00022191,3]
[366994578,1750608651050,-380.66953341,0.00022191,3]
[366994579,1750608651060,-384.95717233,0.00022191,3]
[366994580,1750608651071,-460.0,0.00022191,3]
[366994581,1750608651080,-632.06,0.00022191,3]
[366994582,1750608651090,-460.0,0.00022191,3]
[366994583,1750608651099,-425.0,0.00022192,7]
[366994584,1750608651109,-5888.0,0.00022206,2]
[366994585,1750608651118,-800.0,0.00022214,2]
[366994586,1750608651127,-5395.94236358,0.00022259,2]
[366994587,1750608651137,-933.69697014,0.00022295,2]
[366994588,1750608651146,-500.0,0.000223,2]
[366994589,1750608651155,-500.0,0.000223,2]
[366994590,1750608651165,-500.0,0.000223,2]
[366994591,1750608651174,-500.0,0.000223,2]
[366994592,1750608651184,-500.0,0.000223,2]
[366994593,1750608651194,-634.3,0.00022399,5]
[366994594,1750608651203,-460.0,0.00022465,3]
[366994595,1750608651215,-460.0,0.00022465,3]
[366994596,1750608651224,-280.91981796,0.00022465,3]
[366994597,1750608651234,-460.0,0.00022465,3]
[366994598,1750608651244,-460.0,0.00022465,3]
[366994599,1750608651254,-321.35653578,0.00022465,3]
[366994600,1750608651264,-460.0,0.00022465,3]
[366994601,1750608651274,-460.0,0.00022465,3]
[366994602,1750608651284,-460.0,0.00022465,3]
[366994603,1750608651293,-1000.0,0.00022465,3]
[366994604,1750608651303,-346.02286902,0.00022465,3]
[366994605,1750608651312,-870.16,0.00022465,3]
[366994606,1750608651322,-460.0,0.00022465,3]
[366994607,1750608651332,-460.0,0.00022465,3]
[366994608,1750608651341,-460.0,0.00022465,3]
[366994609,1750608651351,-460.0,0.00022465,3]
[366994610,1750608651361,-460.0,0.00022465,3]
[366994611,1750608651370,-460.0,0.00022465,3]
[366994612,1750608651380,-460.0,0.00022465,3]
[366994613,1750608651389,-445.2976808,0.00022465,3]
[366994614,1750608651399,-460.0,0.00022465,3]
[366994615,1750608651408,-460.0,0.00022465,3]
[366994616,1750608651418,-460.0,0.00022465,3]
[366994617,1750608651427,-460.0,0.00022465,3]
[366994618,1750608651437,-373.44643299,0.00022465,3]
[366994619,1750608651446,-293.63421466,0.00022465,3]
[366994620,1750608651455,-460.0,0.00022465,3]
[366994621,1750608651467,-498.51,0.00022465,3]
[366994622,1750608651476,-460.0,0.00022465,3]
[366994623,1750608651486,-460.0,0.00022465,3]
[366994624,1750608651495,-460.0,0.00022465,3]
[366994625,1750608651505,-460.0,0.00022465,3]
[366994626,1750608651514,-479.16,0.00022465,3]
[366994627,1750608651524,-460.0,0.00022465,3]
[366994628,1750608651534,-365.23604101,0.00022465,3]
[366994629,1750608651544,-460.0,0.00022465,3]
[366994630,1750608651553,-430.0,0.00022465,3]
[366994631,1750608651562,-500.0,0.00022465,2]
[366994632,1750608651572,-460.0,0.00022465,3]
[366994633,1750608651581,-460.0,0.00022465,3]
[366994634,1750608651590,-460.0,0.00022465,3]
[366994635,1750608651601,-460.0,0.00022465,3]
[366994636,1750608651611,-460.0,0.00022465,3]
[366994637,1750608651621,-749.12,0.00022465,3]
[366994638,1750608651631,-460.0,0.00022465,3]
[366994639,1750608651640,-460.0,0.00022465,3]
[366994640,1750608651650,-460.0,0.00022465,3]
[366994641,1750608651659,-460.0,0.00022465,3]
[366994642,1750608651669,-484.78,0.00022465,3]
[366994643,1750608651678,-368.25665112,0.00022465,3]
[366994644,1750608651688,-460.0,0.00022465,3]
[366994645,1750608651698,-460.0,0.00022465,3]
[366994646,1750608651713,-518.33,0.00022465,3]
[366994647,1750608651726,-460.0,0.00022465,3]
[366994648,1750608651737,-460.0,0.00022465,3]
[366994649,1750608651748,-460.0,0.00022465,3]
[366994650,1750608651760,-286.52231408,0.00022465,3]
[366994651,1750608651771,-460.0,0.00022465,3]
[366994652,1750608651782,-460.0,0.00022465,3]
[366994653,1750608651792,-460.0,0.00022465,3]
[366994654,1750608651803,-460.0,0.00022465,3]
[366994655,1750608651813,-460.0,0.00022465,3]
[366994656,1750608651823,-460.0,0.00022465,3]
[366994657,1750608651832,-460.0,0.00022465,3]
[366994658,1750608651842,-1697.63,0.00022465,2]
[366994659,1750608651852,-575.92,0.00022465,3]
[366994660,1750608651862,-460.0,0.00022465,3]
[366994661,1750608651871,-460.0,0.00022465,3]
[366994662,1750608651882,-460.0,0.00022465,3]
[366994663,1750608651892,-460.0,0.00022465,3]
[366994664,1750608651902,-460.0,0.00022465,3]
[366994665,1750608651912,-460.0,0.00022465,3]
[366994666,1750608651921,-460.0,0.00022465,3]
[366994667,1750608651931,-460.0,0.00022465,3]
[366994668,1750608651940,-460.0,0.00022465,3]
[366994669,1750608651950,-460.0,0.00022465,3]
[366994670,1750608651962,-471.02488236,0.00022465,3]
[366994671,1750608651971,-636.32,0.00022465,3]
[366994672,1750608651980,-460.0,0.00022465,3]
[366994673,1750608651990,-1116.41,0.00022465,3]
[366994674,1750608651999,-460.0,0.00022465,3]
[366994675,1750608652009,-460.0,0.00022465,3]
[366994676,1750608652018,-464.07334919,0.00022465,3]
[366994677,1750608652027,-460.0,0.00022465,3]
[366994678,1750608652038,-460.0,0.00022465,3]
[366994679,1750608652048,-526.0,0.00022465,3]
[366994680,1750608652058,-460.0,0.00022465,3]
[366994681,1750608652068,-460.0,0.00022465,3]
[366994682,1750608652078,-234.83179506,0.00022465,3]
[366994683,1750608652087,-460.0,0.00022465,3]
[366994684,1750608652096,-460.0,0.00022465,3]
[366994685,1750608652106,-460.0,0.00022465,3]
[366994686,1750608652116,-460.0,0.00022465,3]
[366994687,1750608652126,-460.0,0.00022465,3]
[366994688,1750608652136,-460.0,0.00022465,3]
[366994689,1750608652145,-460.0,0.00022465,3]
[366994690,1750608652154,-460.0,0.00022465,3]
[366994691,1750608652164,-460.0,0.00022465,3]
[366994692,1750608652173,-460.0,0.00022465,3]
[366994693,1750608652182,-460.0,0.00022465,3]
[366994694,1750608652193,-460.0,0.00022465,3]
[366994695,1750608652202,-460.0,0.00022465,3]
[366994696,1750608652261,-460.0,0.00022465,3]
[366994697,1750608652271,-460.0,0.00022465,3]
[366994698,1750608652280,-460.0,0.00022465,3]
[366994699,1750608652290,-592.81,0.00022465,3]
[366994700,1750608652299,-460.0,0.00022465,2]
[366994701,1750608652308,-460.0,0.00022465,3]
[366994702,1750608652317,-811.66,0.00022465,3]
[366994703,1750608652327,-460.0,0.00022465,3]
[366994704,1750608652336,-460.0,0.00022465,3]
[366994705,1750608652346,-460.0,0.00022465,3]
[366994706,1750608652356,-460.0,0.00022465,3]
[366994707,1750608652365,-460.0,0.00022465,3]
[366994708,1750608652375,-210.96710984,0.00022465,3]
[366994709,1750608652385,-209.87662732,0.00022465,3]
[366994710,1750608652394,-460.0,0.00022465,3]
[366994711,1750608652404,-447.55980933,0.00022465,3]
[366994712,1750608652413,-460.0,0.00022465,3]
[366994713,1750608652422,-546.28831793,0.00022465,3]
[366994714,1750608652431,-460.0,0.00022465,3]
[366994715,1750608652441,-460.0,0.00022465,3]
[366994716,1750608652450,-460.0,0.00022465,3]
[366994717,1750608652462,-460.0,0.00022465,3]
[366994718,1750608652471,-460.0,0.00022465,3]
[366994719,1750608652480,-658.49,0.00022465,3]
[366994720,1750608652490,-460.0,0.00022465,3]
[366994721,1750608652499,-460.0,0.00022465,3]
[366994722,1750608652509,-460.0,0.00022465,3]
[366994723,1750608652518,-460.0,0.00022465,3]
[366994724,1750608652529,-460.0,0.00022465,3]
[366994725,1750608652539,-460.0,0.00022465,3]
[366994726,1750608652548,-466.44006073,0.00022465,3]
[366994727,1750608652557,-460.0,0.00022465,3]
[366994728,1750608652567,-460.0,0.00022465,3]
[366994729,1750608652577,-240.10884094,0.00022465,3]
[366994730,1750608652587,-460.0,0.00022465,3]
[366994731,1750608652596,-850.87,0.00022465,3]
[366994732,1750608652605,-463.24028936,0.00022465,3]
[366994733,1750608652615,-460.0,0.00022465,3]
[366994734,1750608652624,-460.0,0.00022465,3]
[366994735,1750608652633,-460.0,0.00022465,3]
[366994736,1750608652642,-444.88158223,0.00022465,3]
[366994737,1750608652651,-460.0,0.00022465,3]
[366994738,1750608652660,-460.0,0.00022465,3]
[366994739,1750608652670,-460.0,0.00022465,3]
[366994740,1750608652679,-7736.37,0.00022465,3]
[366994741,1750608652688,-3449.23,0.00022465,3]
[366994742,1750608652698,-460.0,0.00022465,3]
[366994743,1750608652710,-460.0,0.00022465,3]
[366994744,1750608652722,-500.0,0.00022465,2]
[366994745,1750608652731,-179.53432683,0.00022465,3]
[366994746,1750608652740,-460.0,0.00022465,3]
[366994747,1750608652751,-460.0,0.00022465,3]
[366994748,1750608652760,-460.0,0.00022465,3]
[366994749,1750608652769,-460.0,0.00022465,3]
[366994750,1750608652779,-460.0,0.00022465,3]
[366994751,1750608652791,-460.0,0.00022465,3]
[366994752,1750608652799,-500.0,0.00022465,3]
[366994753,1750608652809,-460.0,0.00022465,3]
[366994754,1750608652817,-746.41,0.00022465,3]
[366994755,1750608652827,-157.31418918,0.00022465,3]
[366994756,1750608652836,-460.0,0.00022465,3]
[366994757,1750608652846,-460.0,0.00022465,3]
[366994758,1750608652855,-898.76,0.00022465,3]
[366994759,1750608652864,-3782.55,0.00022465,3]
[366994760,1750608652873,-626.49,0.00022465,3]
[366994761,1750608652883,-460.0,0.00022465,3]
[366994762,1750608652892,-460.0,0.00022465,3]
[366994763,1750608652901,-3068.46,0.00022465,3]
[366994764,1750608652910,-460.0,0.00022465,3]
[366994765,1750608652919,-1088.41,0.00022465,3]
[366994766,1750608652929,-460.0,0.00022465,3]
[366994767,1750608652939,-541.97,0.00022465,3]
[366994768,1750608652949,-9889.59,0.00022465,3]
[366994769,1750608652958,-460.0,0.00022465,3]
[366994770,1750608652970,-460.0,0.00022465,3]
[366994771,1750608652980,-460.0,0.00022465,3]
[366994772,1750608652989,-460.0,0.00022465,3]
[366994773,1750608652999,-1858.32,0.00022465,3]
[366994774,1750608653008,-3451.07,0.00022465,3]
[366994775,1750608653017,-460.0,0.00022465,3]
[366994776,1750608653026,-460.0,0.00022465,3]
[366994777,1750608653035,-1040.55,0.00022465,3]
[366994778,1750608653045,-460.0,0.00022465,3]
[366994779,1750608653054,-206.34179142,0.00022465,3]
[366994780,1750608653063,-4034.38,0.00022465,3]
[366994781,1750608653072,-2973.21,0.00022465,3]
[366994782,1750608653081,-4594.28,0.00022465,3]
[366994783,1750608653090,-460.0,0.00022465,3]
[366994784,1750608653100,-12312.43,0.00022465,3]
[366994785,1750608653109,-460.0,0.00022465,3]
[366994786,1750608653118,-460.0,0.00022465,3]
[366994787,1750608653127,-460.0,0.00022465,3]
[366994788,1750608653137,-1386.56,0.00022465,3]
[366994789,1750608653147,-460.0,0.00022465,3]
[366994790,1750608653157,-460.0,0.00022465,3]
[366994791,1750608653166,-460.0,0.00022465,3]
[366994792,1750608653176,-460.0,0.00022465,3]
[366994793,1750608653185,-460.0,0.00022465,3]
[366994794,1750608653195,-874.5,0.00022465,3]
[366994795,1750608653204,-460.0,0.00022465,3]
[366994796,1750608653214,-460.0,0.00022465,3]
[366994797,1750608653225,-503.11,0.00022465,3]
[366994798,1750608653234,-486.25,0.00022465,3]
[366994799,1750608653243,-460.0,0.00022465,3]
[366994800,1750608653252,-460.0,0.00022465,3]
[366994801,1750608653262,-1127.01,0.00022465,3]
[366994802,1750608653271,-550.22,0.00022465,3]
[366994803,1750608653280,-460.0,0.00022465,3]
[366994804,1750608653290,-1624.57,0.00022465,3]
[366994805,1750608653299,-460.0,0.00022465,3]
[366994806,1750608653309,-186.07247444,0.00022465,3]
[366994807,1750608653318,-394.64655436,0.00022465,3]
[366994808,1750608653327,-551.95,0.00022465,3]
[366994809,1750608653336,-460.0,0.00022465,3]
[366994810,1750608653346,-460.0,0.00022465,3]
[366994811,1750608653355,-460.0,0.00022465,3]
[366994812,1750608653364,-1987.52,0.00022465,3]
[366994813,1750608653373,-5404.38,0.00022465,3]
[366994814,1750608653383,-510.34,0.00022465,3]
[366994815,1750608653392,-460.0,0.00022465,3]
[366994816,1750608653401,-460.0,0.00022465,3]
[366994817,1750608653410,-460.0,0.00022465,3]
[366994818,1750608653419,-672.14,0.00022465,3]
[366994819,1750608653429,-1620.57,0.00022465,3]
[366994820,1750608653438,-5904.96,0.00022465,3]
[366994821,1750608653447,-460.0,0.00022465,3]
[366994822,1750608653456,-460.0,0.00022465,3]
[366994823,1750608653467,-924.34,0.00022465,3]
[366994824,1750608653476,-1310.32,0.00022465,3]
[366994825,1750608653485,-460.0,0.00022465,3]
[366994826,1750608653494,-186.61647403,0.00022465,3]
[366994827,1750608653504,-10512.44,0.00022465,3]
[366994828,1750608653513,-460.0,0.00022465,3]
[366994829,1750608653523,-460.0,0.00022465,3]
[366994830,1750608653532,-466.69421219,0.00022465,3]